[Event "57th Biel Festival MTO 2024"]
[White "Nesterov,Arseniy"]
[Black "Vantika Agrawal"]
[Site "Biel"]
[Round "3.10"]
[Annotator "TA"]
[Result "1-0"]
[Date "2024.07.17"]
[WhiteElo "2609"]
[BlackElo "2390"]
[PlyCount "143"]
[TimeControl "60"]

{[%evp 44,143,30,30,30,34,34,39,46,44,32,34,59,57,53,62,58,60,60,61,91,91,90,83,83,83,128,117,128,128,150,128,143,108,75,80,69,80,106,103,102,106,138,141,160,129,140,67,200,195,206,211,208,223,213,209,229,211,291,306,303,302,285,305,326,319,313,333,379,398,543,660,660,634,439,424,1058,1041,951,648,29951,29944,29944,29947,29952,29938,29964,29965,29980,29981,29981,29982,29982,29981,29981,29982,29982,29983,29983,29984,29984,29985]} 1. d4 {[%emt 0:2:17]} Nf6 {[%emt 0:0:38]} 2. c4 {[%emt 0:0:5]} e6 {[%emt 0:0:7]} 3. Nf3 {[%emt 0:0:22]} d5 {[%emt 0:0:46]} 4. Nc3 {[%emt 0:0:5]} Bb4 {[%emt 0:0:24]} 5. Bg5 {[%emt 0:2:25]} h6 {[%emt 0:0:42]} 6. Bxf6 {[%emt 0:0:4]} Qxf6 {[%emt 0:0:29]} 7. e3 {[%emt 0:0:19]} O-O {[%emt 0:0:45]} 8. Rc1 {[%emt 0:0:4]} Nc6 {[%emt 0:13:42]} 9. cxd5 {[%emt 0:13:5]} exd5 {[%emt 0:0:0]} 10. Qb3 {[%emt 0:0:38]} Rd8 {[%emt 0:0:0]} 11. Be2 {[%emt 0:9:58]} Ba5 {[%emt 0:9:19]} 12. O-O {[%emt 0:3:51]} Ne7 {[%emt 0:3:32]} 13. Qa3 {[%emt 0:0:0]} Bxc3 {[%emt 0:9:59]} 14. Rxc3 {[%emt 0:5:32]} c6 {[%emt 0:3:15]} 15. b4 {[%emt 0:0:5]} Bg4 {[%emt 0:12:5]} 16. Qb2 {[%emt 0:10:0]} a6 {[%emt 0:10:38]} 17. a4 {[%emt 0:0:6]} Bxf3 {[%emt 0:9:1]} 18. Bxf3 {[%emt 0:0:7]} Qd6 {[%emt 0:1:33]} 19. Ra1 {[%emt 0:11:29]} g6 {[%emt 0:8:49]} 20. g3 {[%emt 0:3:40]} h5 {[%emt 0:1:15]} 21. h4 {[%emt 0:1:5]} Re8 {[%emt 0:6:32]} 22. b5 {[%emt 0:3:29]} axb5 {[%emt 0:4:10]} 23. axb5 {[%emt 0:0:3]} Rxa1+ {[%emt 0:0:17]} 24. Qxa1 {[%emt 0:0:1]} Qb4 {[%emt 0:1:18]} 25. Be2 {[%emt 0:4:33]} Kg7 {[%emt 0:1:18]} 26. Bf1 {[%emt 0:1:30]} Rc8 {[%emt 0:2:56]} 27. Rc2 {[%emt 0:2:3]} Qb3 {[%emt 0:5:58]} 28. Rc1 {[%emt 0:1:11]} cxb5 {[%emt 0:4:26]} 29. Rb1 {[%emt 0:0:13]} Qa4 {[%emt 0:0:22]} 30. Bxb5 {[%emt 0:4:43]} Qxa1 {[%emt 0:0:8]} 31. Rxa1 {[%emt 0:0:1]} Kf6 {[%emt 0:0:44]} 32. Rb1 $1 {[%emt 0:0:13]} Rc7 {[%emt 0:0:31]} 33. Ba4 {[%emt 0:0:26]} Nc8 {[%emt 0:0:47]} 34. Rb5 $1 {[%emt 0:1:26]} Ne7 {[%emt 0:0:31]} 35. Bb3 {[%emt 0:0:45]} Rd7 {[%emt 0:0:29]} 36. Rb6+ {[%emt 0:0:41]} Nc6 {[%emt 0:0:31]} 37. Kf1 {[%emt 0:0:36]} Ke6 {[%emt 0:0:30]} 38. Ke2 {[%emt 0:0:51]} Kd6 {[%emt 0:0:28]} 39. Rb5 {[%emt 0:2:50]} Ne7 {[%emt 0:0:27]} 40. e4 {[%emt 0:1:20]} dxe4 {[%emt 0:0:29]} 41. Bxf7 {[%emt 0:50:2]} Kc7 {[%emt 0:17:18]} 42. Rc5+ {[%emt 0:0:0]} (42. Ke3 Nf5+ 43. Rxf5 gxf5 44. Bxh5 b5 $11 )Kb6 {[%emt 0:8:8]} 43. Rg5 {[%emt 0:0:0]} Rd6 {[%emt 0:5:34]} 44. Ke3 {[%emt 0:0:0]} Rf6 {[%emt 0:2:43] [#]} 45. Bc4 {[%emt 0:0:0]} (45. Be8 Nf5+ 46. Kd2 (46. Kxe4 $2 Nd6+ 47. Ke3 Nxe8 $19 )Ne7 $16 (46... Nxd4 $2 47. Rxg6 Rxg6 48. Bxg6 $18 ))(45. Ba2 $1 $16 )Rf3+ {[%emt 0:1:38]} ({Günstiger ist} 45... Kc6 $14 )46. Kxe4 $18 {[%emt 0:0:0]} Rxf2 {[%emt 0:0:9] [#]} 47. Re5 $1 {[%emt 0:0:0]} Nf5 {[%emt 0:9:28]} 48. Re6+ {[%emt 0:0:0]} Kc7 {[%emt 0:0:38]} 49. Rxg6 {[%emt 0:0:0]} Nd6+ {[%emt 0:3:37]} 50. Ke3 {[%emt 0:0:0]} Rg2 {[%emt 0:1:42]} 51. Bd5 {[%emt 0:0:0]} Rg1 {[%emt 0:0:20]} 52. Rg7+ {[%emt 0:0:0]} Kd8 {[%emt 0:1:31]} 53. Kf4 {[%emt 0:0:0]} ({Lieber nicht} 53. Bxb7 Nxb7 54. Rxb7 Rxg3+ 55. Ke4 Rg4+ 56. Ke5 Rxh4 $11 )b5 {[%emt 0:3:5]} 54. Rg5 {[%emt 0:0:0]} Rf1+ {[%emt 0:1:14]} 55. Ke5 {[%emt 0:0:0]} Nc4+ {[%emt 0:0:30]} 56. Ke6 {[%emt 0:0:0]} Rg1 {[%emt 0:0:29]} 57. Bxc4 {[%emt 0:0:0]} (57. Rxh5 Rxg3 58. Rh8+ Kc7 $16 )bxc4 {[%emt 0:0:4]} 58. Rd5+ {[%emt 0:0:0]} (58. Rxh5 Rxg3 59. Rd5+ Ke8 $16 )Kc7 {[%emt 0:0:57]} 59. Rxh5 {[%emt 0:0:0]} Rxg3 {[%emt 0:0:25]} (59... Re1+ $142 60. Kf7 (60. Re5 $2 Rxe5+ 61. dxe5 c3 $19 )Kd6 )60. Rc5+ $18 {[%emt 0:0:0]} Kd8 {[%emt 0:0:27]} 61. Rxc4 {[%emt 0:0:0]} Rg4 {[%emt 0:15:18]} 62. h5 {[%emt 0:0:0]} Rh4 {[%emt 0:0:10]} 63. Rc5 {[%emt 0:0:0]} Rxd4 {[%emt 0:0:33]} 64. Rg5 {[%emt 0:0:0]} Re4+ {[%emt 0:1:8]} 65. Kf7 {[%emt 0:0:0]} Re7+ {[%emt 0:0:32]} 66. Kf6 {[%emt 0:0:0]} Re1 {[%emt 0:0:0]} 67. h6 {[%emt 0:0:0]} Rf1+ {[%emt 0:0:0]} 68. Kg7 {[%emt 0:0:0]} Ke7 {[%emt 0:0:0]} 69. h7 {[%emt 0:0:0]} Rf7+ {[%emt 0:0:0]} 70. Kh6 {[%emt 0:0:0]} Rf6+ {[%emt 0:0:0]} 71. Rg6 {[%emt 0:0:0]} Rf8 {[%emt 0:0:0]} 72. Rg8 {[%emt 0:0:0]} 1-0

[Event "57th Biel Festival MTO 2024"]
[White "Xiao,Tong"]
[Black "Munguntuul,Batkhuyag"]
[Site "Biel"]
[Round "3.11"]
[Annotator "TA"]
[Result "1-0"]
[Date "2024.07.17"]
[WhiteElo "2518"]
[BlackElo "2376"]
[PlyCount "81"]
[TimeControl "60"]

{[%evp 9,81,12,14,0,0,8,16,9,17,18,17,17,21,12,39,16,79,93,179,206,171,198,174,166,178,122,184,67,97,76,73,32,131,127,136,119,126,126,232,191,190,194,239,125,122,156,297,241,327,318,252,130,386,381,584,442,404,286,502,501,535,602,572,529,735,358,435,425,500,455,772,538,596,587]} 1. e4 {[%emt 0:0:2]} c6 {[%emt 0:0:4]} 2. d4 {[%emt 0:0:53]} d5 {[%emt 0:0:5]} 3. e5 {[%emt 0:0:42]} c5 {[%emt 0:0:9]} 4. Nf3 {[%emt 0:0:32]} cxd4 {[%emt 0:0:14]} 5. Nxd4 {[%emt 0:0:13]} Nc6 {[%emt 0:0:6]} 6. Nxc6 {[%emt 0:0:34]} bxc6 {[%emt 0:0:3]} 7. Bd3 {[%emt 0:0:4] Schwarz hat schwache schwarze Felder} Qc7 {[%emt 0:0:30]} 8. Qe2 {[%emt 0:0:14] Die Stellung ist ausgeglichen.} e6 {[%emt 0:0:9]} 9. O-O {[%emt 0:1:37]} Bc5 {[%emt 0:2:21]} 10. Nd2 {[%emt 0:2:43]} Ne7 {[%emt 0:2:0]} 11. Nf3 {[%emt 0:9:16]} Bb7 {[%emt 0:8:5]} 12. h4 {[%emt 0:5:57]} Qb6 {[%emt 0:4:33]} (12... a5 $11 {hält das Gleichgewicht.} )13. c3 $16 {[%emt 0:17:31][%cal Bc2c3,Bc3b4][%mdl 32] b4 wäre nun fies.} a5 {[%emt 0:2:8] [#]} (13... Qc7 $16 {kämpft weiter.} )14. b4 $1 $18 {[%emt 0:3:12][%mdl 512]} axb4 {[%emt 0:5:28]} 15. cxb4 {[%emt 0:0:11]} Bd4 {[%emt 0:13:43]} 16. Rb1 {[%emt 0:3:6]} Bc3 {[%emt 0:4:58][%cal Ob7a6] [#]} 17. Rd1 {[%emt 0:11:39]} (17. a4 $1 $18 )h6 {[%emt 0:5:35] [#]} (17... Ba6 $16 )18. a3 {[%emt 0:6:20]} (18. a4 $1 $18 )d4 $1 $14 {[%emt 0:9:39]} 19. Nd2 {[%emt 0:0:23]} Bxd2 {[%emt 0:3:55]} 20. Rxd2 {[%emt 0:3:29]} Nd5 {[%emt 0:1:30]} (20... O-O $1 $14 )21. Qg4 $16 {[%emt 0:1:43]} g6 {[%emt 0:1:37]} 22. Bb2 $36 {[%emt 0:1:4][%cal Od3g6][%mdl 2048] Und jetzt Bxg6! wäre schön. Läuft bei Weiss.} h5 {[%emt 0:1:35]} 23. Qg5 {[%emt 0:1:31]} Rd8 {[%emt 0:11:23]} (23... Ba6 $16 )24. Rc1 {[%emt 0:1:41]} Rd7 {[%emt 0:3:25]} 25. Be4 {[%emt 0:1:49]} Ne7 {[%emt 0:1:28]} 26. Rcd1 {[%emt 0:5:50]} ({Günstiger ist} 26. Bxd4 $18 Rxd4 27. Qe3 )c5 {[%emt 0:4:4]} 27. bxc5 {[%emt 0:0:8] Weiß steht aktiver.} Qa5 {[%emt 0:10:46]} (27... Qb3 $16 )28. Bxb7 $18 {[%emt 0:4:23]} (28. Rxd4 Rxd4 29. Rxd4 Qe1+ 30. Kh2 Bxe4 $19 )Rxb7 {[%emt 0:3:1]} 29. Bxd4 {[%emt 0:0:20]} O-O {[%emt 0:2:0]} 30. Rd3 {[%emt 0:0:53]} (30. Be3 $18 )Rfb8 $2 {[%emt 0:5:32][%mdl 8192] Danach kann Schwarz die Partie nicht mehr halten.} (30... Rd7 $16 31. Be3 Rxd3 32. Rxd3 Qc7 )31. Be3 {[%emt 0:2:40]} Nd5 {[%emt 0:0:32] Lässt Qf6 nicht zu} (31... Qc7 {ist eine bessere Verteidigung.} 32. Rd6 Rb1 33. Rxb1 Rxb1+ 34. Kh2 Rb8 )32. Rxd5 {[%emt 0:1:6]} exd5 {[%emt 0:0:2]} 33. e6 {[%emt 0:0:5]} Qa6 $2 {[%emt 0:0:57]} (33... Qd8 {war nötig.} )34. exf7+ {[%emt 0:0:20]} ({Nicht} 34. Qxd5 Qxe6 35. Qxe6 fxe6 $14 )Rxf7 {[%emt 0:1:3]} 35. Rxd5 {[%emt 0:0:53] Zielt auf Rd6 ab.} (35. Qxd5 Re8 36. c6 Qa4 )Qf6 {[%emt 0:0:26]} 36. Qg3 {[%emt 0:3:3][%csl LRb8,LRh5]} Re8 {[%emt 0:1:46]} 37. Rxh5 {[%emt 0:1:16]} (37. Bd4 $142 Qf4 38. Qxg6+ Kf8 39. Bg7+ (39. Qxh5 $2 Re1# )Rxg7 40. Rf5+ (40. Qxh5 $2 Re1# )Qxf5 41. Qxf5+ Rf7 42. Qxh5 )Rg7 {[%emt 0:1:39]} 38. Rh6 {[%emt 0:3:54] Weiß steht klar auf Gewinn.} Kf7 {[%emt 0:1:50]} 39. Qg4 {[%emt 0:1:29]} Rd8 {[%emt 0:0:39]} (39... Qf5 $142 40. Qd1 Kg8 )40. Kh2 {[%emt 0:2:32]} Qe5+ {[%emt 0:0:12]} 41. g3 {[%emt 0:50:26] Gewichteter Fehlerwert: Weiß=0.44/Schwarz=0.58.  Verlustzug:     	---       	Schwarz=1     Fehler:       	Weiß=5     	Schwarz=9     Ungenau:       	Weiß=2     	Schwarz=2     OK:         	Weiß=14    	Schwarz=8     Bester:       	Weiß=1     	Schwarz=3     Stark:        	---       	Schwarz=1     Brilliant:      	Weiß=1     	---} 1-0

[Event "57th Biel Festival MTO 2024"]
[White "Thavandiran,Shiyam"]
[Black "Valsecchi,Alessio"]
[Site "Biel"]
[Round "3.12"]
[Annotator "TA"]
[Result "1-0"]
[Date "2024.07.17"]
[WhiteElo "2387"]
[BlackElo "2483"]
[PlyCount "101"]
[TimeControl "60"]

{[%evp 20,101,0,0,7,11,6,0,19,0,12,22,15,7,34,-61,-58,-64,-9,-80,-98,-108,-77,-85,-50,-160,-157,-164,-154,-162,41,38,75,87,89,81,123,137,138,119,379,339,383,375,410,399,714,708,668,367,623,595,578,367,454,406,430,443,441,373,366,366,381,376,379,373,377,385,381,379,401,398,431,437,481,469,495,486,520,525,521,527,516,512]} 1. e4 {[%emt 0:1:1]} c5 {[%emt 0:0:10]} 2. Nf3 {[%emt 0:0:39][%cal Bg1f3,Bf3d4,Bd4b5][%mdl 32]} e6 {[%emt 0:0:14]} 3. d4 {[%emt 0:0:32]} cxd4 {[%emt 0:0:6]} 4. Nxd4 {[%emt 0:0:3]} Nc6 {[%emt 0:0:16]} 5. Nb5 {[%emt 0:0:28]} d6 {[%emt 0:0:31]} 6. c4 {[%emt 0:0:6]} Nf6 {[%emt 0:0:26]} 7. N5c3 {[%emt 0:0:22]} Be7 {[%emt 0:0:36]} 8. Be2 {[%emt 0:0:8]} O-O {[%emt 0:0:23]} 9. O-O {[%emt 0:0:7]} b6 {[%emt 0:1:17]} 10. Bf4 {[%emt 0:0:42]} Bb7 {[%emt 0:0:42]} 11. Re1 {[%emt 0:3:47]} Ne5 {[%emt 0:7:23]} 12. Nd2 {[%emt 0:2:54]} Rc8 {[%emt 0:1:34]} 13. Rc1 {[%emt 0:4:22]} Nfd7 {[%emt 0:9:22] The position is equal.} 14. a3 {[%emt 0:17:38]} a6 {[%emt 0:2:8]} 15. Be3 {[%emt 0:5:58]} g5 {[%emt 0:4:34]} 16. Rf1 {[%emt 0:28:47]} Kh8 {[%emt 0:1:24] [#]} 17. h4 {[%emt 0:7:59]} gxh4 {[%emt 0:7:41]} 18. f4 {[%emt 0:0:43]} Ng6 {[%emt 0:0:52]} (18... Nc6 $1 $15 )19. Nf3 {[%emt 0:9:19]} (19. Bg4 $11 )Rg8 $17 {[%emt 0:16:15]} 20. Kh1 {[%emt 0:1:45]} Rg7 {[%emt 0:10:31]} 21. Nd4 {[%emt 0:3:48]} Nf6 {[%emt 0:7:36]} 22. Bd3 {[%emt 0:5:40]} (22. Qd3 $1 $15 )Nf8 {[%emt 0:2:31]} 23. f5 {[%emt 0:1:37]} Ng4 {[%emt 0:4:45]} 24. Bg1 {[%emt 0:0:57]} e5 $2 {[%emt 0:3:46] [#]} (24... Bf6 $19 25. Bb1 Rxc4 )25. f6 $1 $14 {[%emt 0:0:29]} Bxf6 {[%emt 0:8:8]} (25... Nxf6 26. Nf5 )26. Nf5 {[%emt 0:0:3]} Rg6 {[%emt 0:0:52][%cal Of6g5]} 27. Be2 {[%emt 0:2:25][%csl LRd6,LRg4][%cal Bd3e2,Be2g4,Bg4h3][%mdl 32] White has more active pieces.} Bg5 {[%emt 0:0:7] ...h3 would now be deadly.} 28. Bxg4 {[%emt 0:0:11] Hoping for Be3.} Bxc1 {[%emt 0:0:10]} 29. Qxc1 {[%emt 0:0:17]} h3 $2 {[%emt 0:9:59][%mdl 8192]} (29... Rxg4 $16 30. Nh6 Qd7 )30. Bxh3 $18 {[%emt 0:0:41]} Rxc4 {[%emt 0:0:15]} 31. Qe3 {[%emt 0:3:57]} Ne6 {[%emt 0:6:40]} 32. Nh6 {[%emt 0:2:27] A dynamic duo of knights.} (32. Qxb6 Qxb6 33. Bxb6 Nf4 $16 )Qh4 $2 {[%emt 0:0:6]} (32... Qe7 33. Rxf7 (33. Nxf7+ Kg7 $18 )Qg5 34. Qxg5 (34. Rxb7 Qxh6 35. Rxb6 Ng5 $18 )(34. Qxb6 Rxh6 35. Rxb7 Rc8 $18 )Nxg5 35. Rxb7 Rxh6 )33. Nxf7+ {[%emt 0:1:9]} Kg8 {[%emt 0:0:7]} 34. Bf2 {[%emt 0:1:1]} (34. Qxb6 $2 Rxc3 35. Be3 Bxe4 36. Nh6+ Qxh6 (36... Rxh6 $2 37. Kg1 $19 )37. Qb8+ Nf8 38. Qxf8+ Qxf8 $19 )Qh5 {[%emt 0:0:25]} (34... Qe7 35. Nh6+ Kh8 )35. g4 {[%emt 0:2:40]} (35. Qxb6 $2 Rxc3 (35... Rxg2 36. Bh4 $16 )36. Be3 Bxe4 37. Qb8+ Nf8 38. Nh6+ Qxh6 (38... Rxh6 39. Qxf8# )39. Rxf8+ Qxf8 $19 )Rxg4 {[%emt 0:4:28][%cal Rc4e4]} 36. Nh6+ {[%emt 0:0:20]} (36. Nxd6 $2 {perishes.} Ng5 $19 )Kh8 {[%emt 0:0:23][%cal Oc4c3] ( -> ...Rxc3!)} 37. Nxg4 {[%emt 0:0:23]} Nf4 {[%emt 0:0:5]} 38. Kh2 {[%emt 0:1:59][%cal Bh1h2,Bh2h3,Bh3g3,Bg3h4,Bh4g5][%mdl 32]} (38. Qxb6 $2 {leads to mate.} Qxh3+ 39. Nh2 Qg2# )Bc8 {[%emt 0:1:2]} 39. Rg1 {[%emt 0:0:20]} Qxh3+ {[%emt 0:1:27]} 40. Qxh3 {[%emt 0:0:5]} Nxh3 {[%emt 0:0:4]} 41. Kxh3 {[%emt 0:51:27]} h5 {[%emt 0:50:6] [#]} 42. Bxb6 $1 {[%emt 0:0:35]} Kg7 {[%emt 0:0:30] [#]} (42... Bxg4+ 43. Kg3 )43. Kg3 $1 {[%emt 0:0:0]} Bxg4 {[%emt 0:0:0]} 44. Rf1 {[%emt 0:0:0]} Rc8 {[%emt 0:0:0]} 45. Rf2 {[%emt 0:0:0]} Be6 {[%emt 0:0:0]} 46. Kh4 {[%emt 0:0:0] White is clearly winning.} Bf7 {[%emt 0:0:0]} 47. Rd2 {[%emt 0:0:0]} Rc6 {[%emt 0:0:0]} 48. Ba5 {[%emt 0:0:0]} Kf8 {[%emt 0:0:0]} 49. Bb4 {[%emt 0:0:0]} Ke7 {[%emt 0:0:0]} 50. Kg5 {[%emt 0:0:0]} Kd7 {[%emt 0:0:0]} 51. Nd5 {[%emt 0:0:0] Quite a comeback for White.   Weighted Error Value: White=0.37/Black=0.43.  Loses game:     	---       	Black=1      Missed win:     	---       	Black=1      Mistake:       	White=3     	Black=2      Inaccurate:     	---       	Black=4      OK:         	White=16    	Black=12     Best:        	White=4     	Black=5      Brilliant:      	White=1     	---} 1-0

[Event "57th Biel Festival MTO 2024"]
[White "Macovei,Andrei"]
[Black "Ritviz,Parab"]
[Site "Biel"]
[Round "3.13"]
[Annotator "TA"]
[Result "1-0"]
[Date "2024.07.17"]
[WhiteElo "2479"]
[BlackElo "2334"]
[PlyCount "65"]
[TimeControl "60"]

{[%evp 12,65,37,23,34,31,50,56,67,43,63,58,48,42,84,50,57,63,66,67,64,66,49,61,58,72,59,51,93,81,149,150,216,264,233,254,233,272,519,503,500,510,765,772,731,733,787,736,735,718,29981,29982,5157,977,5102,5097]} 1. e4 {[%emt 0:2:28]} c5 {[%emt 0:0:17]} 2. Nf3 {[%emt 0:0:9]} a6 {[%emt 0:0:8]} 3. c4 {[%emt 0:3:42]} Nc6 {[%emt 0:0:31]} 4. d4 {[%emt 0:0:6]} cxd4 {[%emt 0:0:22]} 5. Nxd4 {[%emt 0:0:3]} Nf6 {[%emt 0:0:20]} 6. Nc3 {[%emt 0:0:27]} e5 {[%emt 0:0:16]} 7. Nf5 {[%emt 0:2:9]} d5 {[%emt 0:0:12]} 8. cxd5 {[%emt 0:2:21]} ({Doch nicht} 8. Nxd5 Nxd5 (8... Nxe4 9. Nfe3 $17 )9. cxd5 Bxf5 10. exf5 Bb4+ 11. Bd2 Qxd5 12. Bxb4 Qe4+ (12... Nxb4 13. Qxd5 Nxd5 14. O-O-O $11 )13. Be2 Qxb4+ (13... Nxb4 14. O-O $11 )14. Qd2 Qxd2+ 15. Kxd2 Rd8+ 16. Ke3 g6 $15 )Nxe4 {[%emt 0:0:28]} 9. Nxg7+ {[%emt 0:0:51]} ({Ein No Go ist} 9. Nxe4 Bxf5 10. Ng3 Nd4 11. Nxf5 Bb4+ 12. Bd2 Bxd2+ 13. Qxd2 Nxf5 $15 )Bxg7 {[%emt 0:0:13] Weiß steht etwas besser.} 10. Nxe4 {[%emt 0:0:4]} Nd4 {[%emt 0:0:8]} 11. Nc3 {[%emt 0:0:45]} O-O {[%emt 0:0:51][%cal Bh8f8,Bf8f6,Bf6h6,Bh6h3][%mdl 32]} 12. Bd3 {[%emt 0:0:23]} f5 {[%emt 0:0:36]} 13. O-O {[%emt 0:0:48]} f4 {[%emt 0:2:1]} 14. f3 {[%emt 0:1:34]} Rf6 {[%emt 0:4:37]} 15. Rf2 {[%emt 0:2:9]} Rh6 {[%emt 0:5:10]} 16. g4 {[%emt 0:1:44]} Rh3 {[%emt 0:10:41]} 17. Bf1 $1 {[%emt 0:0:29]} Rh4 {[%emt 0:0:7]} 18. Kh1 {[%emt 0:1:1]} h5 {[%emt 0:14:56] [#]} 19. g5 {[%emt 0:0:50]} Bf5 {[%emt 0:17:6]} (19... Nf5 20. Ne4 )20. Bd3 {[%emt 0:3:6]} Qxg5 {[%emt 0:22:53]} (20... Qb6 $142 )21. Rg2 $16 {[%emt 0:29:36]} Qe7 {[%emt 0:5:29] [#]} (21... Qf6 $16 )22. Bxf5 $1 $18 {[%emt 0:13:45]} Nxf5 {[%emt 0:0:6]} 23. Ne4 {[%emt 0:7:48] Verhindert Ng3+.} Kh8 {[%emt 0:9:52]} 24. Bd2 {[%emt 0:2:42]} Ng3+ $2 {[%emt 0:9:39]} (24... Qd7 25. d6 Rc8 )25. Nxg3 {[%emt 0:0:10]} fxg3 {[%emt 0:0:2]} 26. Rxg3 {[%emt 0:0:5]} Rd4 {[%emt 0:0:6]} 27. Qe2 {[%emt 0:1:29]} Rf8 {[%emt 0:4:49]} 28. Rag1 {[%emt 0:2:12]} Rf7 {[%emt 0:0:22]} 29. Bc3 {[%emt 0:1:59]} Rxd5 {[%emt 0:1:53] [#]} 30. f4 $1 {[%emt 0:1:42][%mdl 512]} Qe6 {[%emt 0:0:48]} (30... h4 31. Rg5 )31. Qxh5+ {[%emt 0:0:34]} Kg8 {[%emt 0:0:20]} 32. Bxe5 {[%emt 0:3:38]} (32. Rg6 $142 Qxg6 33. Qxg6 Rfd7 34. fxe5 (34. Bxe5 Rd1 35. Qe8+ Kh7 36. Qh5+ Kg8 37. Rxd1 Rxd1+ 38. Qxd1 Bxe5 39. fxe5 Kg7 )Rd1 35. Qe8+ Kh7 36. Qh5+ Kg8 37. Rxd1 )Rxe5 {[%emt 0:0:28]} 33. Rxg7+ {[%emt 0:0:27] Gewichteter Fehlerwert: Weiß=0.04 (makellos) /Schwarz=0.61.  Fehler:       	---       	Schwarz=3     Ungenau:       	Weiß=1     	Schwarz=2     OK:         	Weiß=11    	Schwarz=5     Bester:       	Weiß=4     	---        Stark:        	Weiß=2     	---        Brilliant:      	Weiß=1     	---} 1-0

[Event "57th Biel Festival MTO 2024"]
[White "Smeets,Kobe"]
[Black "Assaubayeva,Bibisara"]
[Site "Biel"]
[Round "3.14"]
[Annotator "TA"]
[Result "0-1"]
[Date "2024.07.17"]
[WhiteElo "2324"]
[BlackElo "2472"]
[PlyCount "46"]
[TimeControl "60"]

{[%evp 15,46,-4,18,-13,-7,-10,-8,-9,-2,-12,0,-42,-45,-42,-53,-90,-51,-116,-123,-148,-94,-180,-179,-188,-191,-265,-108,-106,-128,-578,-206,-1276,-1273]} 1. e4 {[%emt 0:0:5]} e5 {[%emt 0:2:18]} 2. Nf3 {[%emt 0:0:11]} Nc6 {[%emt 0:0:12]} 3. Bb5 {[%emt 0:0:9]} a6 {[%emt 0:0:10]} 4. Ba4 {[%emt 0:0:7]} Nf6 {[%emt 0:0:12]} 5. O-O {[%emt 0:0:10][%cal Bh1f1,Bf1e1,Be1e5][%mdl 32]} b5 {[%emt 0:0:3]} 6. Bb3 {[%emt 0:0:6]} Bb7 {[%emt 0:0:5]} 7. c3 {[%emt 0:4:52]} Nxe4 {[%emt 0:1:46]} 8. Re1 {[%emt 0:0:49]} d5 {[%emt 0:0:21]} 9. d3 {[%emt 0:1:0]} Nc5 {[%emt 0:0:7]} 10. Nxe5 {[%emt 0:1:5]} Nxe5 {[%emt 0:0:7]} 11. Rxe5+ {[%emt 0:0:6] The position is equal.} Be7 {[%emt 0:0:7]} 12. Qe2 {[%emt 0:19:32]} Ne6 {[%emt 0:0:39]} 13. d4 {[%emt 0:8:20]} Bf6 {[%emt 0:7:19] Against f4} 14. Re3 {[%emt 0:5:22]} O-O {[%emt 0:2:32]} 15. Bc2 {[%emt 0:8:27][%cal Oc2h7] [#] aiming for Bxh7+!} g6 {[%emt 0:8:25]} 16. Qd1 {[%emt 0:2:25]} ({White should try} 16. Rxe6 $15 fxe6 17. Nd2 )c5 $17 {[%emt 0:12:30]} 17. dxc5 {[%emt 0:0:29]} Qc7 {[%emt 0:8:38]} (17... Nxc5 $142 18. Re2 d4 19. cxd4 Bxd4 )18. Qf3 {[%emt 0:13:14]} (18. Rxe6 $17 {might work better.} fxe6 19. Be3 )Be5 {[%emt 0:6:6]} 19. Re1 {[%emt 0:8:28]} Bxh2+ {[%emt 0:2:49]} 20. Kh1 {[%emt 0:0:13]} (20. Kf1 $142 Nxc5 (20... Qxc5 21. g3 $16 )21. Bh6 )Be5 {[%emt 0:0:46]} ({Less strong is} 20... Nxc5 21. Bh6 $17 )(20... Rfe8 $19 {[%cal Oe6d4] and Black stays clearly on top. Strongly threatening ...Nd4!} 21. Qd1 Rad8 (21... Nxc5 22. Nd2 $17 ))21. Bh6 {[%emt 0:4:56]} Rfe8 {[%emt 0:0:36][%cal Oe5g7] And now ...Bg7! would win.} 22. Qe3 $2 {[%emt 0:5:32][%mdl 8192]} (22. Nd2 $17 )Bf6 $2 {[%emt 0:3:19]} ({Weaker is} 22... Nxc5 23. Nd2 $17 )(22... Bf4 23. Bxf4 Nxf4 24. Qxe8+ Rxe8 25. Rxe8+ Kg7 )23. Qf3 {[%emt 0:4:8] [#]} (23. Nd2 )Nd4 $1 {[%emt 0:0:58][%mdl 512] Weighted Error Value: White=1.02/Black=0.61.  Loses game:     	White=1     	---        Mistake:       	White=4     	Black=3      Inaccurate:     	White=2     	Black=1      OK:         	White=1     	Black=7      Best:        	White=1     	---        Brilliant:      	---       	Black=1} 0-1